Cogmind - Beta 15 *** ADVENTURER MODE // 2025.10.05 @ 21:50:19 Player: Gentle Jesus Result: Self-destructed Performance ------------- Evolutions (4) 2000 Regions Visited (5) 1000 Robots Destroyed (15) 75 Value Destroyed (402) 402 Prototype IDs (11) 220 Alien Tech Used (0) 0 Bonus (902) 902 TOTAL SCORE: 4599 Bonus ------- Follower Combat Kills 102 Registered with UFD 300 Met Optimus in HQ 500 Cogmind --------- Core Integrity 656/850 Matter 275/300 Energy 3/100 System Corruption 0% Temperature Cool (9) Movement Walking (180) Ox1 Location -6/Factory Parts ------- > --- POWER (2) -------- (None) > --- PROPULSION (6+3) - Arachnoskeleton > --- UTILITY (5) ------ Huge Storage Unit Advanced Sensor Array Improved Terrain Scanner > --- WEAPON (2) ------- Gatling Laser Coil Gun > --- INVENTORY (25) --- High-capacity Matter Pod (200) Peak State ------------ > --- POWER ------------ Deuterium Engine Nuclear Core > --- PROPULSION ------- Carbon-fiber Leg Titanium Leg Arachnoskeleton > --- UTILITY ---------- Huge Storage Unit Improved Terrain Scanner > --- WEAPON ----------- Phase Cannon Coil Gun > --- INVENTORY -------- High-capacity Matter Pod Subdweller Machine Gun Rocket Launcher [Rating: 47] Favorites ----------- Power Light Ion Engine Engine Light Ion Engine Power Core Nuclear Core Propulsion Aluminum Leg Leg Aluminum Leg Utility Seismic Detector Device Seismic Detector Storage Medium Storage Unit Weapon Phase Cannon Energy Gun EM Pulse Gun Energy Cannon Phase Cannon Ballistic Gun Coil Gun Launcher Rocket Launcher Build | -11 -10 -10 -10 -8 -6 ------- Run | Yrd Mat Min Sub Scr Fac Slots Evolved 8 | . . . . . 8 Power 1 | . . . . . 1 Propulsion 4 | . . . . . 4 Utility 3 | . . . . . 3 Weapon . | . . . . . . Parts Attached 24 | 7 . 2 1 5 9 Power 3 | 1 . . . 1 1 Engine 2 | 1 . . . 1 . Core 1 | . . . . . 1 Reactor . | . . . . . . Propulsion 6 | 2 . . . 2 2 Treads . | . . . . . . Leg 6 | 2 . . . 2 2 Wheel . | . . . . . . Hover . | . . . . . . Flight . | . . . . . . Utility 7 | 2 . 2 . . 3 Device 4 | 1 . . . . 3 Storage 3 | 1 . 2 . . . Processor . | . . . . . . Hackware . | . . . . . . Protection . | . . . . . . Artifact . | . . . . . . Weapon 8 | 2 . . 1 2 3 Energy Gun 2 | 1 . . . . 1 Energy Cannon 1 | . . . . 1 . Ballistic Gun 4 | 1 . . 1 1 1 Ballistic Cannon . | . . . . . . Launcher 1 | . . . . . 1 Special Weapon . | . . . . . . Impact Weapon . | . . . . . . Slashing Weapon . | . . . . . . Piercing Weapon . | . . . . . . Special Melee Weapon . | . . . . . . Unidentified Prototypes . | . . . . . . Parts Lost 11 | . . . . 1 10 Power 2 | . . . . . 2 Propulsion 3 | . . . . . 3 Utility 2 | . . . . 1 1 Weapon 4 | . . . . . 4 Highest Loss Streak 5 | . . . . 1 5 To Critical Strikes . | . . . . . . Average Backups 5 | . 2 3 4 6 2 Power . | . 1 1 1 1 . Propulsion . | . . . . 1 . Utility 2 | . 1 2 3 3 1 Weapon . | . . . . 1 1 Tool/Special . | . . . . . . Unused Backups 2 | . . . . 1 1 Power 1 | . . . . 1 . Propulsion . | . . . . . . Utility 1 | . . . . . 1 Weapon . | . . . . . . Tool/Special . | . . . . . . Average Slot Usage (%) 95 | . 100 100 100 99 40 Engine 13 | . 14 14 14 14 2 Leg 26 | . 28 28 28 28 12 Device 13 | . 14 14 14 13 6 Storage 13 | . 14 14 14 14 5 Energy Gun 3 | . 14 14 8 . . Energy Cannon 7 | . . . . 12 2 Ballistic Gun 14 | . 14 14 19 14 4 Peak Build Rating 47 | 7 7 7 10 24 47 Average Rating 16 | 4 7 6 7 19 39 On Entrance 9 | . 7 7 7 10 23 Naked Turns . | . . . . . . Heaviest Build 110 | 12 12 87 19 33 110 Greatest Support 82 | 20 20 20 20 32 82 Greatest Overweight (x) 4 | . . 4 . 1 1 Average Overweight (x) . | . . . . . 1 Largest Inventory Capacity 25 | 8 8 25 10 10 25 Average Capacity 11 | 7 8 10 10 10 24 Most Carried 10 | 2 2 5 8 10 9 Average Carried 6 | . 2 3 4 8 2 Final Capacity 25 | 8 8 10 10 10 25 Final Carried 9 | 2 2 4 8 9 1 Class Distribution -------------------- 95% | Mutant 3% | Derelict-Mutant Dominant Class ---------------- Mutant | -10/Mines Mutant | -10/Subcaves Mutant | -8/Scraptown Derelict-Mutant | -6/Factory Resources | -11 -10 -10 -10 -8 -6 ----------- Run | Yrd Mat Min Sub Scr Fac Matter Collected 782 | 213 . 291 33 68 177 Remotely . | . . . . . . Salvage Created 529 | 21 . 36 53 70 349 Parts 27 | 4 . 6 2 4 11 Haulers Intercepted . | . . . . . . Recyclers Shooed 2 | . . . . . 2 Parts Field Recycled . | . . . . . . Retrieved Matter . | . . . . . . Parts Self-Destructed 3 | . . . 3 . . Prevented . | . . . . . . Kills | -11 -10 -10 -10 -8 -6 ------- Run | Yrd Mat Min Sub Scr Fac Combat Hostiles Destroyed 10 | . . 3 1 1 5 Guns 8 | . . 3 1 . 4 Cannons 1 | . . . . 1 . AOE 1 | . . . . . 1 Classes Destroyed 9 | 1 . 1 1 1 5 Worker 2 | . . . . . 2 Tunneler 1 | 1 . . . . . Recycler 1 | . . . . . 1 Swarmer 3 | . . 3 . . . Grunt 4 | . . . . . 4 Duelist 1 | . . . . . 1 Sentry 1 | . . . . . 1 Subdweller 1 | . . . 1 . . Scrapper 1 | . . . . 1 . Best Kill Streak 7 | 1 . 3 1 1 7 Combat Bots Only 3 | . . 3 1 1 3 Max Kills in Single Turn 2 | 1 . 1 1 1 2 Gunslinging . | . . . . . . Exploded 1 | . . . . . 1 Melee . | . . . . . . Uniques/NPCs Destroyed . | . . . . . . Combat | -11 -10 -10 -10 -8 -6 -------- Run | Yrd Mat Min Sub Scr Fac Hostile Shots Fired 187 | . . 5 20 33 129 Missed 62 | . . 2 7 4 49 Hits 125 | . . 3 13 29 80 Melee 6 | . . . . . 6 Projectile 119 | . . 3 13 29 74 AOE 1 | . . . . . 1 Critical Strikes 8 | . . . . 5 3 Damage Taken 1904 | . . 20 269 488 1127 Core 377 | . . . 34 149 194 Absorbed by Shields . | . . . . . . Ignored by Resistances 518 | . . 6 62 133 317 Core Remaining (%) 63 | 100 . . . 26 . Volleys Fired 55 | 1 . 3 18 5 28 Largest 2 | 2 . 2 2 2 2 Hottest 118 | 60 . 60 60 115 118 Shots Fired 88 | 2 . 6 36 10 34 Gun 74 | 2 . 6 36 5 25 Cannon 8 | . . . . 5 3 Launcher 6 | . . . . . 6 Special . | . . . . . . Kinetic 56 | 1 . 3 22 5 25 Thermal 8 | . . . . 5 3 Explosive 6 | . . . . . 6 Electromagnetic 18 | 1 . 3 14 . . Robot Hit Streak 21 | 1 . 1 21 7 18 Robot Miss Streak 2 | . . 1 2 1 1 Penetration Max 1 | . . . . 1 . Secondary Targets 1 | . . . 1 . . Max Gunslinging Chain 1 | . . . 1 . . Shots Hit Robots 69 | 1 . 3 25 8 32 Core Hits 33 | 1 . 3 4 2 23 Critical Kills 2 | . . 1 . . 1 Critical Parts Destroyed . | . . . . . . Critical Strikes 2 | . . 1 . . 1 Destroy 2 | . . 1 . . 1 Melee Attacks . | . . . . . . Impact . | . . . . . . Slashing . | . . . . . . Piercing . | . . . . . . Sneak Attacks . | . . . . . . Combat Hostiles . | . . . . . . Follow-up Attacks . | . . . . . . Damage Inflicted 1645 | 21 . 35 76 233 1280 Guns 748 | 21 . 35 76 112 504 Cannons 215 | . . . . 121 94 Explosions 682 | . . . . . 682 Melee . | . . . . . . Ramming . | . . . . . . Kinetic 702 | 8 . 24 54 112 504 Thermal 215 | . . . . 121 94 Explosive 682 | . . . . . 682 Electromagnetic 46 | 13 . 11 22 . . Impact . | . . . . . . Slashing . | . . . . . . Piercing . | . . . . . . Highest Corruption . | . . . . . . Average Corruption . | . . . . . . Corruption Purged . | . . . . . . Corruption Blocked . | . . . . . . Overload Shots . | . . . . . . Overflow Damage . | . . . . . . Projectiles . | . . . . . . Explosions . | . . . . . . Melee . | . . . . . . Knockbacks . | . . . . . . Impact . | . . . . . . Kinetic . | . . . . . . Secondary . | . . . . . . Self-Inflicted Damage 60 | . . . . . 60 Shots 2 | . . . . . 2 Rammed . | . . . . . . Targets Rammed . | . . . . . . Kicked . | . . . . . . Crushed . | . . . . . . Highest Temperature 551 | 20 . 40 . 551 237 Average Temperature 197 | 15 . 17 . 288 134 Received Heat Transfer 958 | . . . 78 433 447 Effects 7 | . . . . 7 . Shutdowns 2 | . . . . 2 . Damage (major) 5 | . . . . 5 . Siege Activations . | . . . . . . Martial Activations . | . . . . . . Shielding Activations . | . . . . . . Robots Disrupted . | . . . . . . Combat Hostiles . | . . . . . . Robots Corrupted . | . . . . . . Combat Hostiles . | . . . . . . Parts Fried . | . . . . . . Impact Corruptions . | . . . . . . Robots Melted . | . . . . . . Combat Hostiles . | . . . . . . Parts Melted 1 | . . . 1 . . Heat Transferred 211 | . . . . 100 111 Parts Sabotaged . | . . . . . . Parts Stolen . | . . . . . . Parts Stripped . | . . . . . . Power Chain Reactions . | . . . . . . Alert | -11 -10 -10 -10 -8 -6 ------- Run | Yrd Mat Min Sub Scr Fac Maximum Alert Level . | . . . . . . Low Security (%) 100 | 100 100 100 . . 100 Level 1 . | . . . . . . Level 2 . | . . . . . . Level 3 . | . . . . . . Level 4 . | . . . . . . Level 5 . | . . . . . . High Security . | . . . . . . Max Security . | . . . . . . Peak Influence 64 | 5 . 64 . . 60 Initial . | . . . . . . Average 11 | . . 8 . . 21 Influence Increases 254 | 5 . 74 . . 175 Destroy 0b10 Robot/C 160 | . . 60 . . 100 Destroy 0b10 Robot/NC 20 | 5 . . . . 15 Destroy Leader 30 | . . 10 . . 20 Allied During Kill 4 | . . 4 . . . Disable Machine 9 | . . . . . 9 Destroy Structure 31 | . . . . . 31 Influence Decreases 247 | 5 . 40 34 . 168 Entered New Map 21 | . . . 21 . . Time Decay 128 | 5 . 40 13 . 70 Lost Part 98 | . . . . . 98 Squads Dispatched 2 | . . . . . 2 Investigation 1 | . . . . . 1 Extermination . | . . . . . . Reinforcement . | . . . . . . Assault . | . . . . . . Garrison 1 | . . . . . 1 Intercept . | . . . . . . Searches Triggered . | . . . . . . Construction Impeded . | . . . . . . Haulers Reinforced . | . . . . . . Active Scanning Responses . | . . . . . . Cargo Convoy Interrupts . | . . . . . . Stealth | -11 -10 -10 -10 -8 -6 --------- Run | Yrd Mat Min Sub Scr Fac Distress Signals . | . . . . . . Communications Jammed . | . . . . . . Distress Signals . | . . . . . . Times Spotted 30 | . . 3 2 13 12 Peak Tracking Total 6 | . . 2 2 6 6 Tactical Retreats . | . . . . . . Traps | -11 -10 -10 -10 -8 -6 ------- Run | Yrd Mat Min Sub Scr Fac Traps Triggered 1 | . . . 1 . . Indirectly . | . . . . . . Trap Hack Attempts . | . . . . . . Triggered . | . . . . . . Disarmed . | . . . . . . Reprogrammed . | . . . . . . Reused . | . . . . . . Traps Extracted . | . . . . . . Installed . | . . . . . . Triggered . | . . . . . . Machines | -11 -10 -10 -10 -8 -6 ---------- Run | Yrd Mat Min Sub Scr Fac Machines Disabled 2 | . . . 1 . 1 Max in Single Turn 1 | . . . 1 . 1 Machines Repaired . | . . . . . . Machines Dismantled . | . . . . . . Machines Sabotaged . | . . . . . . Overloaded Fab Kills . | . . . . . . Hacking | -11 -10 -10 -10 -8 -6 --------- Run | Yrd Mat Min Sub Scr Fac Machines Accessed 5 | . . . 1 2 2 Terminals 1 | . . . . . 1 Fabricators . | . . . . . . Repair Stations . | . . . . . . Recycling Units 1 | . . . . . 1 Scanalyzers . | . . . . . . Garrison Access . | . . . . . . Total Hacks 8 | . . . 2 3 3 Successful 7 | . . . 2 3 2 Failed 1 | . . . . . 1 Catastrophic . | . . . . . . Database Lockouts . | . . . . . . Manual 1 | . . . . . 1 Terminals 1 | . . . . . 1 Fabricators . | . . . . . . Repair Stations . | . . . . . . Recycling Units 2 | . . . . . 2 Scanalyzers . | . . . . . . Garrison Access . | . . . . . . Terminal Hacks 6 | . . . 2 3 1 Record 3 | . . . 1 2 . Open Door 1 | . . . . 1 . Alert Level 1 | . . . . . 1 Proto ID Catalog 1 | . . . 1 . . Fabricator Hacks . | . . . . . . Repair Station Hacks . | . . . . . . Recycling Unit Hacks . | . . . . . . Scanalyzer . | . . . . . . Garrison Access Hacks . | . . . . . . Unauthorized Hacks 1 | . . . . . 1 Terminals . | . . . . . . Fabricators . | . . . . . . Repair Stations . | . . . . . . Recycling Units 1 | . . . . . 1 Fedlink 1 | . . . . . 1 Scanalyzers . | . . . . . . Garrison Access . | . . . . . . Data Cores Recovered . | . . . . . . Used . | . . . . . . Hacking Detections 2 | . . . . . 2 Full Trace Events . | . . . . . . Feedback Events . | . . . . . . Feedback Blocked . | . . . . . . Robot Schematics Acquired . | . . . . . . Robots Built . | . . . . . . Authchips . | . . . . . . Time . | . . . . . . Total Robot Build Rating . | . . . . . . Part Schematics Acquired . | . . . . . . Parts Built . | . . . . . . Authchips . | . . . . . . Time . | . . . . . . Total Part Build Rating . | . . . . . . Parts Repaired . | . . . . . . Time . | . . . . . . Parts Recycled . | . . . . . . Recycled Matter . | . . . . . . Retrieved Matter . | . . . . . . Retrieved Components . | . . . . . . Parts Scanalyzed . | . . . . . . Part Schematics Acquired . | . . . . . . Parts Damaged . | . . . . . . Bothacking | -11 -10 -10 -10 -8 -6 ------------ Run | Yrd Mat Min Sub Scr Fac Used RIF Installer . | . . . . . . Robots Hacked . | . . . . . . Non-combat . | . . . . . . Combat . | . . . . . . Robot Hacks Applied . | . . . . . . Relay Couplers Released . | . . . . . . Fabnet Peak Effective % . | . . . . . . Robots Rewired . | . . . . . . Allies Hacked . | . . . . . . Hacks Repelled . | . . . . . . Allies | -11 -10 -10 -10 -8 -6 -------- Run | Yrd Mat Min Sub Scr Fac Total Allies 3 | . . 3 . . . Largest Group 3 | . . 3 3 2 1 Highest-Rated Group 40 | . . 40 40 32 16 Highest-Rated Ally 16 | . . 16 16 16 16 Total Orders . | . . . . . . Ally Attacks 62 | . . . 43 18 1 Total Damage 448 | . . . 181 267 . Kills 3 | . . . 1 2 . Allies Corrupted . | . . . . . . Allies Melted 1 | . . . . 1 . Intel | -11 -10 -10 -10 -8 -6 ------- Run | Yrd Mat Min Sub Scr Fac Active Infowar (turns) 3269 | 4 9 477 665 1880 234 Sensors 1 | . . . . . 1 Terrain 234 | . . . . . 234 Seismic 3035 | 4 9 477 665 1880 . Robot Analysis Total . | . . . . . . Derelict Logs Recovered 2 | . . 1 . 1 . Drone Launches . | . . . . . . Drone Recoveries . | . . . . . . Exploration | -11 -10 -10 -10 -8 -6 ------------- Run | Yrd Mat Min Sub Scr Fac Turns Passed 3351 | 62 9 477 665 1899 239 Spaces Moved 1965 | 47 8 318 499 1009 84 Core 13 | 13 . . . . . Treads . | . . . . . . Legs 1952 | 34 8 318 499 1009 84 Wheels . | . . . . . . Hover . | . . . . . . Flight . | . . . . . . Fastest Speed 50 | 50 120 120 120 120 180 Average Speed 157 | 100 120 136 120 183 186 Slowest Speed 400 | 120 120 400 120 195 190 Overloaded Moves . | . . . . . . Propulsion Burnouts . | . . . . . . Robots Hopped . | . . . . . . Potential Cave-ins . | . . . . . . Cave-ins Triggered . | . . . . . . Exploration Rate (%) 29 | 3 5 71 26 71 3 Regions Visited 5 Branch Regions 3 Pre-discovered Areas 1 | . . 1 . . . Known Exits Taken . | . . . . . . Unknown Exits Taken 5 | 1 1 1 1 1 . Scrap Searched 6 | . . 1 1 4 . Spaces Dug . | . . . . . . Terrain Destroyed 33 | . . . . 2 31 Melee . | . . . . . . Projectile 2 | . . . . 2 . AOE 31 | . . . . . 31 Terrain Rammed . | . . . . . . Walls Destroyed . | . . . . . . Machines Disabled . | . . . . . . Actions | -11 -10 -10 -10 -8 -6 --------- Run | Yrd Mat Min Sub Scr Fac Total 2127 | 56 7 355 530 1050 129 Wait 65 | . . 29 11 22 3 Move 1960 | 46 7 317 498 1008 84 Hop . | . . . . . . Pick Up 7 | 2 . 1 1 3 . Fast Attach 15 | 7 . . 1 2 5 Attach 7 | . . 1 . . 6 Detach 2 | . . 1 1 . . Swap 7 | . . 2 . 3 2 Drop 9 | . . 1 . 7 1 Fire 55 | 1 . 3 18 5 28 Melee . | . . . . . . Ram . | . . . . . . Kick . | . . . . . . Crush . | . . . . . . Escape Stasis . | . . . . . . Rewire . | . . . . . . Trap . | . . . . . . Miscellaneous . | . . . . . . Route ------- -11/Scrapyard -10/Materials -10/Mines (discovered 3 exits: [*Mat x2] / *Sub) -10/Subcaves (discovered 2 exits: [*Mat] / *Scr) -8/Scraptown (discovered 2 exits: *Fac x2) -6/Factory History --------- Turn | Location | Event 16 | -11/Scrapyard | Discovered new exit (range 15) 63 | -11/Scrapyard | Entered Materials 66 | -10/Materials | Discovered new exit (range 5) 72 | -10/Materials | Entered Mines 161 | -10/Mines | Discovered new exit (range 5) 307 | -10/Mines | Build established: Mutant 404 | -10/Mines | Learned location of Zion (-6) 426 | -10/Mines | Assisted by bots powering up and referring to "LRC-V3" 475 | -10/Mines | Discovered new exit (range 9) 529 | -10/Mines | Discovered new exit (range 5) 549 | -10/Mines | Entered Subcaves 549 | -10/Subcaves | Accompanied by 3 allies 550 | -10/Subcaves | Approached by a straggling Scientist 667 | -10/Subcaves | Discovered new exit (range 9) 741 | -10/Subcaves | Visited 4L-MR0's lab 877 | -10/Subcaves | Scientist uncovered a shortcut to Scraptown 1115 | -10/Subcaves | Found Arachnoskeleton 1214 | -10/Subcaves | Entered Scraptown 1214 | -8/Scraptown | Accompanied by 2 allies 1469 | -8/Scraptown | Discovered new exit (range 3) 1776 | -8/Scraptown | Scanned Subdweller tech in exchange for log data 1831 | -8/Scraptown | Visited The Evicted 1896 | -8/Scraptown | Visited Spacefarers 1907 | -8/Scraptown | Visited Fellowship of the Rings 1932 | -8/Scraptown | Visited Junk Repository 2151 | -8/Scraptown | Visited UFD Registry 2151 | -8/Scraptown | Registered with UFD as "Softlauncher" 2195 | -8/Scraptown | Visited LU-1G1's Boring Crew 2227 | -8/Scraptown | Visited Research Penetration Think Tank 2275 | -8/Scraptown | Visited A0-MCA Data Center 2286 | -8/Scraptown | Given a B- rating by A0-MCA 2322 | -8/Scraptown | Visited Scrapoid Pod Storage 2396 | -8/Scraptown | Visited DA-N13 Charitable Foundation 2414 | -8/Scraptown | Found DCF Scrap (28 items) 2461 | -8/Scraptown | Visited Scrapoid Research Area 2495 | -8/Scraptown | Visited Abandonware Association 2526 | -8/Scraptown | Visited Sword Containment 2580 | -8/Scraptown | Visited Cartography Club 2670 | -8/Scraptown | Visited Science Guys 2816 | -8/Scraptown | Met Optimus 2816 | -8/Scraptown | Accepted into 0bPrime 2926 | -8/Scraptown | Discovered new exit (range 3) 3063 | -8/Scraptown | Civil war broke out across Scraptown 3091 | -8/Scraptown | Core integrity fell below 50% 3113 | -8/Scraptown | Entered Factory 3113 | -6/Factory | Accompanied by 1 ally 3113 | -6/Factory | Evolved 8 slots: Power x1, Propulsion x4, Utility x3 3115 | -6/Factory | Attached Arachnoskeleton, gained temporary slots: Propulsion x3 3143 | -6/Factory | Lost 5 allies 3268 | -6/Factory | Lost 5 parts (1p2n2w) 3295 | -6/Factory | Loaded intel: 8 recycling unit locations 3307 | -6/Factory | Garrison activated, responded to threat 3352 | -6/Factory | Self-destructed Last Messages --------------- ALERT: Activating Garrison Access F003. Carbon-fiber Leg destroyed. Y-54 Guardian destroyed. Rocket Launcher destroyed. Fusion Modulator explodes. G-50 Soldier destroyed. Imp. Heat Sink destroyed. Acquired 25 matter. Slug penetrates Wall. Nuclear Core destroyed. Acquired Gatling Laser. Sub. Machine Gun destroyed. Slug penetrates Wall. R-10 Processor inserts Lgt. Angular Momentum Engine into recycling unit. Connecting with Terminal... >>Alert(Check) Current Alert Level: Low Security Acquired Coil Gun. Acquired Adv. Sensor Array. Map ----- +----------------------------------------------------+ | ?????????????????????????????????????????????????? | | ?????????????????????????????????????????????????? | | ?????????????????????????????????????????????????? | | ?????????????????????????????????????????????????? | | ?????????????????????????????????????????????????? | | ?????????????????????????????????????????????????? | | ?????????????????????????????????????????????????? | | ?????????????????????????????????????????????????? | | ?????????????????????????????????????????????????? | | ?????????????????????????????????????????????????? | | ?????????????????????????????????????????????????? | | ??????????????????????????????? ?????????????????? | | ????????????????? ??????????????????????????????? | | ?????????????????????????????????????????????????? | | ??????????????????? ?#???????????????????????????? | | ??????? ????????"??"????? ???????????????????????? | | ?????????????????????????????????????????????????? | | ????####??#??????#???????????????????????????????? | | ???# !?????######?????????????????????????????? | | ???# // ????# #????#????????????????????????? | | ???+ // ???# ""#??? #??#?????????????????????? | | ???? / #### ""#??? ##?#?????????????????????? | | ?????? " # ""#??? ##???????????????????????? | | ?????###"""" " Y"####+####?#???????????????????? | | ?????#"""""""" ?"" #[ #?????????????????????? | | ##???# ""## [@ #?????????????????????? | | ##???# ""## " b ##????????????????????? | | #??### # T #?????????????????????? | | #????# ## "g #?#??#????????????????? | | #????# % gg g #??#??????????????????? | | #???## ##############??????????????????? | | #????# "" #??# ?????????????????? | | #????# "" #??? ??????#????????????? | | #?#??# "" #### """" ???????????????????? | | #######""""""""" ## # """ ???????????????? | | ^ % ? "" #??????????????? | | #??????????????? | | ^^ % ""???????????????? | | "" """ """ ! ?!? ""???????????????? | | "" """ """ % !! G???????????????? | | "" """ """ ## ? ""???????????????? | | # # "????????????????? | | % #### # ???????????????? | | ########## #??# ########## ##???????????????? | | #????????# #??# #??????????#????????????????? | | #????????# #??# ?????#?????????????????????? | | #????????# #???##???????????????????????????? | | ######???# #????????+???????????????????????? | | ##### ####???#????? ??????????????????????? | | + #????#??????????????????????????????? | +----------------------------------------------------+ Best States ------------- Heat Dissipation 51 Energy Generation 23 Energy Capacity 415 Matter Stores 300 Matter Capacity 300 Sight Range 16 Terrain Scan Range 16 Terrain Scan Density 10 Resistance: KI 20 Resistance: TH 20 Resistance: EX 20 Resistance: EM 20 Resistance: I 20 Resistance: S 20 Resistance: P 20 Evasion (%) 55 Offensive Hacking 10 Item Schematics ----------------- None Robot Schematics ------------------ None Fabricated ------------ Nothing Repaired ---------- Nothing Alien Tech Used ----------------- None Achievements -------------- None Challenges ------------ None Game ------ Seed CatalystWarpWell Manual? 0 Play Time 00:18:42 Cumulative 154.7 hours Start 2025.10.05 @ 18:53:31 End 2025.10.05 @ 21:50:19 Sessions 3 Manual Loads 0 Difficulty Adventurer Special Mode None Game No. 124 Rogue 0 Adventurer 124 Explorer 0 Win Type - Total 4 Types 3/0/0/1/0/0/0/0/0/0 Lore% 63 Gallery% 62 Achievement% 57 Wizard Run 0 Options --------- Layout 1 ASCII 0 Keyboard 0 Movement Arrows Keybinds 0 Fullscreen 1 Font 24/Smallcaps Map View 50x35 Zoom Use 3% Tactical HUD 0 Map Filters NONE Filters NONE Steam 1 RUN: 1a9feec0-25e9-4c26-9a8c-db92f30581f7